bitfinex-derivatives/quotes_ETHF0:USTF0_20250830
["timestamp","ask_amount","ask_price","bid_price","bid_amount"]
[1756541862179,0.4854,4398.8,4398.7,3.4398]
[1756541867685,0.67595079,4398.8,4398.7,3.4398]
[1756541870379,0.67605532,4398.8,4398.7,3.4398]
[1756541871481,0.67605532,4398.8,4398.7,0.232]
[1756541871684,0.4854,4398.8,4398.7,0.232]
[1756541871881,0.67611248,4398.8,4398.7,0.232]
[1756541872387,0.37771248,4398.8,4398.7,0.232]
[1756541872687,4.37771248,4398.8,4398.6,0.232]
[1756541872882,0.37771248,4398.7,4398.6,0.232]
[1756541873183,4.67611248,4398.7,4398.6,0.232]
[1756541875991,0.67611248,4398.7,4398.6,0.232]
[1756541877492,0.2984,4398.6,4398.2,3.2078]
[1756541877790,0.4854,4398.3,4398.2,3.2078]
[1756541877988,0.67611248,4398.3,4398.2,3.4398]
[1756541878188,0.67611248,4398.3,4398.2,3.2078]
[1756541878390,0.67611248,4398.3,4398.2,3.4398]
[1756541879384,0.48911248,4398.3,4398.2,3.4398]
[1756541879793,0.19071248,4398.3,4398.2,3.4398]
[1756541881493,3.2078,4400.8,4398.2,7.66716]
[1756541881685,0.2984,4400.6,4399.8,3.2078]
[1756541881890,0.2984,4400.6,4399.9,0.232]
[1756541882990,0.4854,4400.6,4399.9,0.232]
[1756541883194,0.2984,4400.6,4399.9,0.232]
[1756541884089,0.4854,4400.5,4400.4,3.2078]
[1756541884290,0.4854,4400.5,4400.4,3.4398]
[1756541884494,3.2078,4401.5,4400.4,3.4398]
[1756541885697,0.2984,4401.4,4400.4,3.4398]
[1756541885886,3.2078,4401.5,4400.4,3.4398]
[1756541887095,0.3078,4401.4,4400.4,3.4398]
[1756541887592,3.2078,4401.5,4400.4,3.4398]
[1756541887796,3.2078,4401.5,4400.4,3.2078]
[1756541887999,0.4961,4400.5,4400.4,3.2078]
[1756541888300,0.4961,4400.5,4400.4,0.232]
[1756541889699,0.4961,4400.0,4399.9,3.2078]
[1756541889998,0.4961,4400.0,4399.9,3.4398]
[1756541890395,0.3078,4400.0,4399.9,3.2078]
[1756541890597,0.3078,4400.0,4399.9,3.4398]
[1756541890901,0.3078,4401.4,4399.9,3.4398]
[1756541891099,0.22724001,4401.4,4399.9,3.2078]
[1756541891300,0.53504001,4401.3,4400.0,0.232]
[1756541891601,0.3078,4401.3,4400.0,0.232]
[1756541891899,0.22724001,4401.2,4400.0,0.232]
[1756541892101,3.2078,4401.5,4399.9,3.2078]
[1756541892102,0.1883,4400.1,4399.9,3.2078]
[1756541892301,0.3078,4400.0,4399.9,3.2078]
[1756541892501,0.3078,4400.0,4399.9,3.4398]
[1756541893002,0.4961,4400.0,4399.9,3.4398]
[1756541894299,0.4961,4400.0,4399.9,3.2078]
[1756541894499,0.4961,4400.0,4399.9,3.4398]
[1756541895206,0.4961,4400.0,4399.9,3.2078]
[1756541895503,0.4961,4400.0,4399.9,0.232]
[1756541897401,0.1883,4400.0,4399.3,3.2078]
[1756541897705,0.4961,4399.4,4399.3,3.2078]
[1756541897906,0.4961,4399.4,4399.3,3.4398]
[1756541898299,0.4961,4399.4,4399.3,3.2078]
[1756541898504,0.4961,4399.4,4399.3,3.4398]
[1756541898802,0.4961,4399.4,4399.0,32.745]
[1756541899106,0.4961,4399.4,4399.1,0.232]
[1756541899322,0.1883,4399.1,4399.0,0.232]
[1756541899512,0.4961,4399.1,4399.0,0.232]
[1756541899815,0.4961,4399.1,4398.1,3.2078]
[1756541899816,0.1883,4398.2,4398.1,3.2078]
[1756541900006,0.4961,4398.2,4398.1,3.2078]
[1756541900207,0.4961,4398.2,4398.1,3.4398]
[1756541900610,0.4961,4398.2,4398.1,0.232]
[1756541910219,0.1883,4398.2,4397.6,3.2078]
[1756541910425,0.4961,4397.7,4397.6,3.2078]
[1756541910625,0.3078,4397.7,4397.6,3.4398]
[1756541911321,0.4961,4397.7,4397.6,3.4398]
[1756541912028,0.3078,4397.7,4397.6,3.4398]
[1756541914023,3.2078,4399.0,4397.6,3.4398]
[1756541914328,0.3078,4398.8,4397.6,3.4398]
[1756541914628,0.22736,4398.9,4397.6,3.4398]
[1756541914831,0.4961,4397.7,4397.6,3.4398]
[1756541918026,0.4961,4397.7,4397.6,3.2078]
[1756541918535,0.4961,4397.7,4397.6,3.4398]
[1756541922534,3.2078,4399.0,4397.6,3.4398]
[1756541922838,0.4954,4397.7,4397.6,3.4398]
[1756541923728,0.4954,4397.7,4397.6,3.2078]
[1756541923936,0.4954,4397.7,4397.6,3.4398]
[1756541924527,0.4954,4397.7,4396.4,0.17836699]
[1756541924528,0.4954,4397.7,4396.9,3.2078]
[1756541924833,0.4954,4397.0,4396.9,3.2078]
[1756541925037,0.4954,4397.0,4396.9,3.4398]
[1756541925631,0.4954,4397.0,4396.9,3.2078]
[1756541925835,0.4954,4397.0,4396.9,3.4398]
[1756541928838,0.3041,4397.0,4396.9,3.4398]
[1756541929238,3.2078,4398.0,4396.9,3.4398]
[1756541929437,0.55466156,4397.9,4396.9,3.4398]
[1756541929639,0.3041,4397.7,4396.9,3.4398]
[1756541929839,0.3041,4397.9,4396.9,3.4398]
[1756541930040,0.3041,4397.7,4396.9,3.4398]
[1756541930240,0.3041,4397.9,4396.9,3.4398]
[1756541930441,0.3041,4397.7,4396.9,3.4398]
[1756541930635,3.2078,4398.0,4396.9,3.4398]
[1756541930841,0.3041,4397.8,4396.9,3.4398]
[1756541931037,0.3041,4397.6,4396.9,3.4398]
[1756541931237,0.3041,4397.9,4396.9,3.4398]
[1756541931443,0.1913,4397.0,4396.9,3.4398]
[1756541931646,0.4954,4397.0,4396.9,3.4398]
[1756541931847,0.4954,4397.0,4396.9,3.2078]
[1756541932050,0.4954,4397.0,4396.9,3.4398]
[1756541932938,0.4954,4397.0,4396.9,3.2078]
[1756541933139,0.4954,4397.0,4396.9,3.4398]
[1756541933539,0.4954,4397.0,4396.9,3.2078]
[1756541933746,0.4954,4397.0,4396.9,3.4398]
[1756541936052,0.4954,4397.0,4396.9,3.2078]
[1756541936250,0.4954,4397.0,4396.8,0.232]
[1756541936450,0.3041,4396.9,4396.7,0.232]
[1756541936749,3.2078,4397.5,4396.7,0.232]
[1756541936750,0.4954,4396.8,4396.7,0.232]
[1756541939246,0.3041,4396.7,4396.4,3.2078]
[1756541939446,0.4954,4397.3,4396.5,0.232]
[1756541939645,0.3041,4397.2,4396.6,0.232]
[1756541940147,0.1913,4396.7,4396.6,0.232]
[1756541940453,0.4954,4396.7,4396.4,3.2078]
[1756541940651,0.3041,4396.5,4396.4,3.2078]
[1756541940851,0.3041,4396.5,4396.4,3.4398]
[1756541941754,3.2078,4397.5,4396.4,3.4398]
[1756541941949,0.3041,4397.3,4396.4,3.4398]
[1756541942252,0.4954,4396.5,4396.4,3.2078]
[1756541942444,0.4954,4396.5,4396.4,3.4398]
[1756541942647,0.1913,4396.5,4395.8,3.2078]
[1756541942848,0.1913,4396.5,4395.9,0.232]
[1756541943050,0.22747,4396.4,4395.3,3.2078]
[1756541943249,0.3041,4396.8,4395.4,0.232]
[1756541943452,0.3041,4396.6,4395.4,0.232]
[1756541943650,0.5547725,4396.5,4395.4,0.232]
[1756541943955,0.3041,4396.5,4395.4,0.232]
[1756541944453,0.53158,4396.5,4395.4,0.232]
[1756541948857,0.53158,4396.5,4395.3,3.2078]
[1756541949158,0.2883,4396.4,4395.4,0.232]
[1756541953158,0.4933,4395.5,4395.4,0.232]
[1756541953952,0.205,4395.4,4394.8,3.2078]
[1756541954146,0.4933,4395.3,4394.9,0.232]
[1756541954354,0.205,4395.2,4394.9,0.45949999]
[1756541954563,0.2883,4395.1,4394.9,0.232]
[1756541954746,0.2883,4395.1,4395.0,0.22749999]
[1756541954950,0.2883,4396.3,4395.0,0.22749999]
[1756541955150,0.5158,4396.3,4394.9,0.232]
[1756541955350,0.2883,4396.1,4395.0,0.22749999]
[1756541955750,0.2883,4396.1,4394.9,0.232]
[1756541955946,0.2883,4396.1,4395.0,0.22751]
[1756541956152,0.205,4395.1,4394.8,3.2078]
[1756541956350,0.2883,4396.3,4394.9,0.232]
[1756541956553,0.5158,4396.3,4394.9,0.45949999]
[1756541956755,0.2883,4396.3,4395.3,3.2078]
[1756541956958,3.2078,4396.4,4395.3,3.2078]
[1756541957162,0.2883,4396.2,4395.3,3.2078]
[1756541957364,0.22749001,4396.3,4395.3,3.2078]
[1756541957557,0.2883,4394.9,4394.8,3.2078]
[1756541957752,0.4933,4394.2,4394.1,0.10468464]
[1756541958061,0.2883,4394.1,4393.4,3.2078]
[1756541958263,0.2883,4394.3,4393.4,3.2078]
[1756541958652,3.2078,4394.4,4393.4,3.2078]
[1756541959359,0.4933,4394.3,4393.4,3.2078]
[1756541959555,0.4933,4394.2,4393.4,3.2078]
[1756541959859,0.205,4394.2,4393.4,3.2078]
[1756541960067,0.4933,4394.1,4393.4,3.2078]
[1756541960864,0.4933,4394.0,4393.4,3.2078]
[1756541961166,3.2078,4394.4,4393.4,3.2078]
[1756541961368,0.4933,4393.5,4393.4,3.2078]
[1756541961565,0.4933,4393.5,4393.4,3.4408]
[1756541961868,0.2883,4393.5,4393.4,3.4408]
[1756541962164,3.2078,4394.4,4393.4,3.4408]
[1756541963363,0.2883,4394.3,4393.4,3.4408]
[1756541963662,3.2078,4394.4,4393.4,3.4408]
[1756541963864,0.2883,4394.3,4393.4,3.4408]
[1756541964071,0.4933,4394.3,4393.4,3.4408]
[1756541967375,0.4933,4394.2,4393.4,3.4408]
[1756541968670,0.1849065,4395.4,4393.9,3.2078]
[1756541968671,0.2883,4395.3,4393.9,3.2078]
[1756541968974,0.4933,4395.3,4394.4,3.2078]
[1756541969176,0.4933,4395.3,4394.5,0.233]
[1756541971772,0.4933,4395.3,4395.1,3.2078]
[1756541971973,0.2883,4395.3,4395.1,3.2078]
[1756541972272,3.2078,4396.1,4395.1,3.2078]
[1756541972677,0.2883,4396.0,4395.1,3.2078]
[1756541972978,3.2078,4396.1,4395.1,3.2078]
[1756541973478,0.205,4395.2,4395.1,3.2078]
[1756541973677,0.4933,4395.2,4395.1,3.2078]
[1756541974078,0.2883,4395.2,4395.1,3.2078]
[1756541974377,0.4933,4395.2,4395.1,3.2078]
[1756541975980,0.2883,4395.2,4395.1,3.2078]
[1756541979778,0.47525056,4395.2,4395.1,3.2078]
[1756541984485,0.2883,4395.2,4395.1,3.2078]
[1756541985088,0.47538106,4395.2,4395.1,3.2078]
[1756541985586,0.47538471,4395.2,4395.1,3.2078]
[1756541985986,0.2883,4395.2,4395.1,3.2078]
[1756541986186,0.47538669,4395.2,4395.1,3.2078]
[1756541987887,0.67568669,4395.2,4395.1,3.2078]
[1756541988278,0.67577857,4395.2,4395.1,3.2078]
[1756541989188,0.67579195,4395.2,4395.1,3.2078]
[1756541992895,0.47549195,4395.2,4395.1,3.2078]
[1756541994393,0.67579195,4395.2,4395.1,3.2078]
[1756541994892,0.67579195,4395.2,4395.1,3.4398]
[1756541995988,0.67579195,4395.2,4395.1,3.2078]
[1756541996190,0.67579195,4395.2,4395.1,3.4398]
[1756541996389,0.67579195,4395.2,4395.1,0.232]
[1756541997192,0.38749195,4395.2,4394.6,3.2078]
[1756541997393,0.4892,4395.0,4394.7,0.232]
[1756541997593,0.2889,4394.8,4394.7,0.232]
[1756541997799,0.67639195,4394.8,4394.7,0.232]
[1756541998894,0.4892,4394.8,4394.7,0.232]
[1756541999101,0.67707444,4394.8,4394.7,0.232]
[1756542000990,0.18787444,4394.8,4394.7,0.232]
[1756542001496,0.2889,4394.7,4394.6,3.2078]
[1756542001801,0.47677444,4394.7,4394.6,3.4398]
[1756542002495,0.18787444,4394.7,4394.6,3.4398]
[1756542003900,0.67707444,4394.7,4394.6,3.4398]
[1756542006202,0.67707444,4394.7,4394.6,3.2078]
[1756542006399,0.67707444,4394.7,4394.6,3.4398]
[1756542006903,0.18787444,4394.7,4394.6,3.4398]
[1756542007195,0.18787444,4394.7,4394.6,12.35815]
[1756542007795,0.18787444,4394.7,4394.6,12.1306]
[1756542007991,3.2078,4396.6,4394.6,45.13115]
[1756542008195,0.2918,4396.4,4395.8,3.2078]
[1756542008395,0.4954,4396.0,4395.9,0.232]
[1756542009098,0.2918,4395.9,4395.8,3.2078]
[1756542009399,0.4954,4395.9,4395.8,3.4398]
[1756542011203,0.4954,4395.9,4395.8,3.2078]
[1756542011406,0.4954,4395.9,4395.8,3.4398]
[1756542017013,0.4954,4395.9,4395.8,3.2078]
[1756542017211,0.4954,4395.9,4395.6,0.232]
[1756542023617,0.2918,4395.7,4395.6,0.232]
[1756542024017,3.2078,4396.6,4395.6,0.232]
[1756542024018,0.2918,4396.5,4395.6,0.232]
[1756542024316,0.2918,4396.3,4395.6,0.232]
[1756542024517,0.55689485,4396.2,4395.6,0.232]
[1756542024819,0.2036,4396.0,4395.6,0.232]
[1756542025016,0.2918,4395.9,4395.6,0.232]
[1756542025319,0.2918,4395.9,4395.7,3.2078]
[1756542025818,3.2078,4396.6,4395.7,3.2078]
[1756542026014,0.55689283,4396.5,4395.7,3.2078]
[1756542026215,0.2036,4396.2,4395.7,3.2078]
[1756542026415,0.2918,4396.3,4395.7,3.2078]
[1756542026615,0.4954,4395.8,4395.7,3.2078]
[1756542029219,0.2036,4395.2,4395.1,3.2078]
[1756542029421,0.4954,4395.2,4395.1,3.4398]
[1756542032018,0.4954,4395.2,4395.1,3.2078]
[1756542032221,0.4954,4395.2,4395.1,3.4398]
[1756542035418,0.4954,4395.2,4395.1,3.2078]
[1756542035612,0.4954,4395.2,4395.1,3.4398]
[1756542037116,3.2078,4396.1,4395.1,3.4398]
[1756542037318,0.55744298,4396.0,4395.1,3.4398]
[1756542037525,0.287,4395.8,4395.1,3.4398]
[1756542037725,0.287,4395.7,4395.1,3.4398]
[1756542037925,0.4927,4395.7,4395.1,3.4398]
[1756542041522,0.287,4395.7,4395.1,3.4398]
[1756542046028,0.287,4395.6,4395.1,3.4398]
[1756542046229,0.2057,4395.6,4395.1,3.4398]
[1756542046530,3.2078,4396.1,4395.1,3.4398]
[1756542046730,0.4927,4395.2,4395.1,3.2078]
[1756542046935,0.4927,4395.2,4395.1,3.4398]
[1756542051835,0.287,4395.1,4394.6,3.2078]
[1756542052133,0.4927,4394.7,4394.6,3.2078]
[1756542052334,0.4927,4394.7,4394.6,3.4398]
[1756542054431,3.2078,4395.6,4394.6,3.4398]
[1756542054637,0.4927,4394.7,4394.6,3.2078]
[1756542054836,0.4927,4394.7,4394.6,3.4398]
[1756542055539,3.2078,4395.6,4394.6,3.4398]
[1756542055736,0.287,4395.4,4394.6,3.4398]
[1756542055931,3.2078,4395.6,4394.6,3.4398]
[1756542056132,0.7850003,4395.5,4394.6,3.4398]
[1756542056337,0.5574703,4395.4,4394.6,3.4398]
[1756542056539,0.22753,4395.5,4394.6,3.4398]
[1756542056741,0.55744325,4395.4,4394.6,3.4398]
[1756542056928,3.2078,4395.6,4394.6,3.4398]
[1756542057134,0.78480535,4395.5,4394.6,3.4398]
[1756542057334,0.287,4395.3,4394.6,3.4398]
[1756542057535,0.287,4395.5,4394.6,3.4398]
[1756542057735,0.287,4395.3,4394.6,3.4398]
[1756542057935,0.287,4395.4,4394.6,3.4398]
[1756542058136,0.287,4395.5,4394.6,3.4398]
[1756542058439,0.287,4395.3,4394.6,3.4398]
[1756542058640,0.287,4395.4,4394.6,3.4398]
[1756542058941,3.2078,4395.6,4394.6,3.4398]
[1756542059141,0.287,4395.4,4394.6,3.4398]
[1756542059341,0.22753,4395.5,4394.6,3.4398]
[1756542059641,0.4927,4394.7,4394.6,3.2078]
[1756542059846,0.287,4394.7,4394.6,3.4398]
[1756542060143,3.2078,4395.6,4394.6,3.4398]
[1756542060447,1.04996639,4395.5,4394.6,3.4398]
[1756542060740,1.04996639,4395.4,4394.6,3.4398]
[1756542060940,0.4927,4395.4,4394.6,3.4398]
[1756542061640,0.287,4395.2,4394.7,0.232]
[1756542061843,0.287,4395.0,4394.7,0.232]
[1756542062544,0.287,4395.5,4394.7,0.232]
[1756542062744,0.4927,4395.3,4394.8,0.232]
[1756542062944,3.2078,4395.6,4394.8,0.232]
[1756542063244,0.4927,4395.4,4394.8,0.232]
[1756542063843,0.4927,4395.0,4394.9,0.232]
[1756542064039,0.287,4394.9,4394.6,3.2078]
[1756542064253,0.4927,4394.7,4394.6,3.2078]
[1756542064442,0.4927,4394.7,4394.6,3.4398]
[1756542066745,0.4927,4394.1,4394.0,32.77]
[1756542066943,0.4927,4394.1,4394.0,33.002]
[1756542067947,0.287,4394.1,4394.0,33.002]
[1756542068844,0.2987,4395.0,4394.0,32.77]
[1756542069146,0.2987,4394.8,4394.4,3.2078]
[1756542069347,0.2987,4394.7,4394.5,0.232]
[1756542070452,0.2987,4395.0,4394.5,0.232]
[1756542070647,3.4089,4395.1,4394.5,0.232]
[1756542070949,3.2078,4395.1,4394.5,0.232]
[1756542071151,0.4998,4395.0,4394.5,0.232]
[1756542074549,0.4998,4394.5,4394.4,0.232]
[1756542075855,0.4998,4395.0,4394.4,3.4398]
[1756542076452,0.2011,4394.8,4394.4,3.4398]
[1756542076750,3.2078,4395.1,4394.4,3.4398]
[1756542076952,0.4998,4395.5,4394.9,3.2078]
[1756542077155,0.2987,4395.5,4395.0,0.232]
[1756542078053,3.2078,4396.1,4395.0,0.232]
[1756542078253,0.2987,4395.9,4395.0,0.232]
[1756542081457,0.55690214,4395.8,4394.5,4.6908]
[1756542081653,0.4998,4394.6,4394.5,4.6908]
[1756542081853,0.4998,4394.6,4394.5,0.232]
[1756542082758,0.2011,4394.6,4394.4,3.2078]
[1756542082955,0.4998,4394.6,4394.5,0.232]
[1756542085859,0.2987,4395.5,4394.5,0.232]
[1756542086060,0.4998,4395.0,4394.9,3.2078]
[1756542086257,0.4998,4395.0,4394.9,3.4398]
[1756542087462,0.4998,4395.0,4394.9,0.232]
[1756542089364,0.4998,4395.0,4394.3,3.2078]
[1756542089661,0.4998,4394.5,4394.4,0.232]
[1756542096279,0.4998,4394.4,4394.3,3.2078]
[1756542096579,0.4998,4394.4,4394.3,3.4398]
[1756542103481,0.4998,4394.4,4394.3,3.2078]
[1756542103680,0.4998,4394.4,4394.3,3.4398]
[1756542106186,0.2987,4394.4,4394.3,3.4398]
[1756542106386,0.2888,4395.4,4394.3,12.35815999]
[1756542106579,0.2888,4395.1,4394.5,3.2078]
[1756542106779,0.4855,4395.1,4394.6,0.232]
[1756542108285,0.2888,4395.0,4394.6,0.232]
[1756542108483,0.2888,4396.0,4394.6,0.232]
[1756542108686,0.55603187,4395.9,4394.6,0.232]
[1756542108885,0.84483187,4395.8,4394.6,0.232]
[1756542109187,0.2888,4395.6,4394.6,0.232]
[1756542109385,0.55608542,4395.5,4394.6,0.232]
[1756542109580,0.2888,4395.1,4394.9,3.2078]
[1756542109785,0.2888,4395.1,4395.0,0.232]
[1756542110588,0.4855,4395.1,4395.0,0.232]
[1756542110886,0.2888,4396.1,4395.0,0.232]
[1756542111087,0.55611876,4396.0,4395.0,0.232]
[1756542111286,0.84491876,4395.9,4395.0,0.232]
[1756542111485,0.55611876,4395.8,4395.0,0.232]
[1756542111685,0.2888,4395.7,4395.0,0.232]
[1756542111886,0.4855,4395.5,4395.0,0.232]
[1756542112584,0.2888,4395.3,4395.0,0.232]
[1756542112786,0.2888,4396.1,4395.0,0.232]
[1756542112990,0.2888,4395.8,4395.4,3.2078]
[1756542113289,3.2078,4396.2,4395.4,3.2078]
[1756542113290,0.2888,4396.1,4395.5,0.232]
[1756542113887,0.4855,4396.1,4395.5,0.232]
[1756542118694,0.1967,4396.1,4394.9,7.8986]
[1756542118898,0.1967,4395.1,4395.0,0.232]
[1756542119103,0.4855,4395.1,4395.0,0.232]
[1756542119491,0.4855,4395.1,4394.9,7.8986]
[1756542119892,0.4855,4395.1,4395.0,0.232]
[1756542120100,0.4855,4395.1,4394.9,4.6908]
[1756542120292,0.4855,4395.0,4394.9,4.6908]
[1756542120492,0.4855,4395.0,4394.9,4.9228]
[1756542120900,0.4855,4395.0,4394.9,7.8986]
[1756542121098,0.4855,4395.0,4394.9,8.1306]
[1756542124502,0.4855,4395.0,4394.9,3.4398]
[1756542125703,0.4855,4395.0,4394.9,3.2078]
[1756542126099,0.4855,4395.0,4394.9,3.4398]
[1756542132201,0.2864,4396.1,4394.9,3.4398]
[1756542132409,0.55829688,4396.0,4394.9,3.2078]
[1756542132708,0.2864,4395.8,4395.0,0.232]
[1756542133405,0.4884,4395.8,4395.5,3.2078]
[1756542133702,3.4098,4396.2,4395.6,0.232]
[1756542133908,1.04672494,4396.1,4395.6,0.232]
[1756542134100,0.4884,4396.1,4395.6,0.232]
[1756542134703,3.4098,4396.2,4395.6,0.232]
[1756542135003,0.2864,4396.0,4395.6,0.232]
[1756542135203,0.202,4396.1,4395.6,3.4398]
[1756542135404,0.2864,4395.9,4395.6,3.4398]
[1756542136408,0.4884,4395.7,4395.6,3.2078]
[1756542136708,0.4884,4395.7,4395.6,0.232]
[1756542137410,0.4884,4395.7,4395.0,3.2078]
[1756542137607,0.2864,4395.5,4395.1,0.45951]
[1756542137812,0.22749001,4396.6,4395.1,0.45951]
[1756542138108,0.2864,4396.4,4395.2,0.22748]
[1756542138302,3.2078,4396.7,4395.2,0.22748]
[1756542138303,0.2864,4396.2,4395.2,0.22748]
[1756542139416,0.2864,4396.2,4395.5,3.2078]
[1756542139712,0.4884,4395.6,4395.5,3.2078]
[1756542139907,0.4884,4395.6,4395.5,3.4398]
[1756542143713,0.4884,4395.6,4395.5,3.2078]
[1756542144108,0.4884,4395.6,4395.5,3.4398]
[1756542148018,0.4884,4395.6,4395.5,0.232]
[1756542149521,0.202,4395.6,4395.5,0.232]
[1756542150021,0.4884,4395.6,4395.0,4.6908]
[1756542150226,0.4884,4395.1,4395.0,4.9228]
[1756542150721,0.4884,4395.1,4395.0,0.232]
[1756542152520,0.71593,4395.1,4395.0,0.232]
[1756542152721,0.2864,4395.0,4394.9,3.2078]
[1756542152912,0.4884,4395.0,4394.9,3.2078]
[1756542153821,0.4884,4395.0,4394.7,0.232]
[1756542156124,0.2864,4394.9,4394.7,0.232]
[1756542156325,0.202,4394.8,4394.7,0.232]
[1756542156625,0.4884,4394.8,4394.7,0.232]
[1756542160820,0.3086,4394.7,4394.6,0.232]
[1756542161021,0.4997,4394.7,4394.6,0.232]
[1756542166226,0.3086,4394.6,4394.3,3.2078]
[1756542166420,0.4997,4394.4,4394.3,3.2078]
[1756542166625,0.4997,4394.4,4394.3,3.4398]
[1756542173728,0.3086,4394.4,4394.3,3.4398]
[1756542174821,0.4997,4394.4,4394.3,3.4398]
[1756542176933,0.4997,4394.4,4394.3,3.2078]
[1756542177135,0.3086,4394.4,4394.3,3.4398]
[1756542177330,0.4997,4394.4,4394.3,3.4398]
[1756542179332,0.4997,4394.4,4394.3,3.2078]
[1756542179638,0.4997,4394.4,4394.3,3.4388]
[1756542181638,0.3086,4395.1,4394.3,3.4388]
[1756542181832,0.56024259,4395.0,4394.3,3.4388]
[1756542182138,3.2078,4395.2,4394.3,3.4388]
[1756542182139,0.4997,4394.4,4394.3,3.4388]
[1756542182638,3.2078,4395.2,4394.3,3.4388]
[1756542182839,0.3086,4395.0,4394.3,3.4388]
[1756542183032,0.56016529,4394.9,4394.3,3.4388]
[1756542183230,0.3086,4395.1,4394.3,3.4388]
[1756542183429,0.3086,4394.9,4394.3,3.4388]
[1756542183636,0.3086,4394.7,4394.3,3.4388]
[1756542183934,0.3086,4395.0,4394.3,3.4388]
[1756542184131,0.4997,4395.0,4394.3,3.4388]
[1756542185138,0.1911,4395.0,4394.3,3.4388]
[1756542185339,0.4997,4394.9,4394.3,3.4388]
[1756542186141,3.2078,4395.7,4394.4,0.22755]
[1756542186334,0.8687181,4395.6,4394.5,0.231]
[1756542186537,0.5601181,4395.5,4394.5,0.45853]
[1756542186845,0.5601181,4395.4,4394.6,0.22753]
[1756542187041,0.3086,4395.5,4394.7,0.231]
[1756542187238,0.56011191,4395.4,4394.7,0.231]
[1756542187431,0.4997,4395.5,4394.7,0.231]
[1756542187636,0.56008808,4395.4,4394.7,0.231]
[1756542187843,0.3086,4395.5,4394.9,3.2078]
[1756542188046,3.2078,4395.7,4395.0,0.231]
[1756542188544,3.4031,4395.7,4395.0,0.231]
[1756542188745,3.7096,4395.7,4395.0,0.231]
[1756542190446,3.7096,4395.7,4394.9,3.2078]
[1756542190447,3.4031,4395.7,4394.9,3.2078]
[1756542190648,0.5018,4395.0,4394.9,3.2078]
[1756542190846,0.5018,4395.0,4394.9,3.4388]
[1756542193547,0.5018,4395.0,4394.9,3.2078]
[1756542193849,0.5018,4395.0,4394.9,3.4388]
[1756542196350,0.5018,4395.0,4394.9,3.2078]
[1756542196540,0.5018,4395.0,4394.9,3.4388]
[1756542200054,0.5018,4395.0,4394.9,3.2078]
[1756542200255,0.5018,4395.0,4394.9,3.4388]
[1756542200854,0.5018,4395.0,4394.9,0.231]
[1756542206054,0.3065,4394.9,4394.4,3.2078]
[1756542206255,0.1953,4394.7,4394.6,3.2078]
[1756542206459,0.5018,4394.7,4394.6,3.2078]
[1756542209664,0.5018,4394.7,4394.6,3.4388]
[1756542217062,0.5018,4394.7,4394.6,0.231]
[1756542221673,0.1953,4394.7,4394.1,3.2078]
[1756542221867,0.2029,4394.3,4394.2,0.231]
[1756542222068,0.4928,4394.3,4394.2,0.231]
[1756542223064,0.72037,4394.3,4394.2,0.231]
[1756542223767,0.4928,4394.3,4394.2,0.231]
[1756542224975,0.4928,4394.2,4394.1,3.2078]
[1756542226173,0.4928,4394.2,4394.1,3.4388]
[1756542226469,0.2029,4394.6,4394.1,3.2078]
[1756542226677,0.2899,4394.6,4394.2,0.231]
[1756542226877,0.4928,4394.3,4394.2,0.231]
[1756542227078,0.4928,4394.2,4394.1,3.2078]
[1756542227274,0.4928,4394.2,4394.1,3.4388]
[1756542228072,0.4928,4394.2,4394.1,3.2078]
[1756542228277,0.4928,4394.2,4394.1,3.4388]
[1756542233983,0.4928,4394.2,4394.1,3.2078]
[1756542234181,0.4928,4394.2,4394.1,3.4388]
[1756542234981,3.2078,4394.7,4393.5,3.2078]
[1756542234982,0.2899,4394.1,4393.5,3.2078]
[1756542235181,3.2078,4394.7,4393.6,0.231]
[1756542235374,0.2899,4394.6,4393.6,0.231]
[1756542235572,0.51748,4394.6,4393.6,0.231]
[1756542235770,0.22758,4394.5,4393.6,0.231]
[1756542235974,0.2899,4394.4,4393.6,0.231]
[1756542238887,0.2029,4393.8,4393.7,0.231]
[1756542239085,0.4928,4393.8,4393.7,0.231]
[1756542241484,3.2078,4394.7,4393.7,0.231]
[1756542241792,0.4928,4393.8,4393.7,0.231]
[1756542241993,0.2899,4393.7,4393.6,0.231]
[1756542242187,0.4928,4393.7,4393.6,0.231]
[1756542244095,3.2078,4394.7,4393.6,0.231]
[1756542244296,1.07678527,4394.6,4393.6,0.231]
[1756542244497,0.2899,4394.4,4393.6,0.231]
[1756542245098,0.51748,4394.4,4393.6,0.231]
[1756542245298,0.2899,4394.4,4393.6,0.231]
[1756542245795,0.4928,4393.7,4393.6,0.231]
[1756542247900,0.299,4394.6,4393.6,0.231]
[1756542248194,0.299,4394.4,4393.6,0.231]
[1756542248399,0.299,4394.2,4393.6,0.231]
[1756542248600,0.4929,4394.2,4393.6,0.231]
[1756542250302,3.2078,4394.7,4393.5,3.2078]
[1756542250497,0.85873894,4394.6,4393.6,0.231]
[1756542250698,0.4929,4393.7,4393.6,0.231]
[1756542251602,0.1939,4393.7,4393.6,0.231]
[1756542251898,0.4929,4393.7,4393.6,0.231]